fUSD/lending_fUSD_20240216
["ID","MTS","AMOUNT","RATE_DAILY","PERIOD"]
[314189640,1708055439814,-500.0,0.0003863,7]
[314189641,1708055439824,-500.0,0.0003863,7]
[314189642,1708055439833,-500.0,0.0003863,7]
[314189643,1708055439843,-500.0,0.0003863,7]
[314189644,1708055439852,-547.67661972,0.0003863,7]
[314189645,1708055439861,-500.0,0.0003863,7]
[314189646,1708055439870,-500.0,0.0003863,7]
[314189647,1708055439879,-500.0,0.0003863,7]
[314189648,1708055439888,-500.0,0.0003863,7]
[314189649,1708055439897,-520.29094919,0.0003863,7]
[314189650,1708055439906,-500.0,0.0003863,7]
[314189651,1708055439915,-603.91,0.0003863,7]
[314189652,1708055439924,-500.0,0.0003863,7]
[314189653,1708055439933,-500.0,0.0003863,7]
[314189654,1708055439941,-164.67,0.0003863,7]
[314189655,1708055439951,-564.44,0.0003863,7]
[314189656,1708055439960,-500.0,0.0003863,7]
[314189657,1708055439969,-980.23,0.0003863,7]
[314189658,1708055439978,-500.0,0.0003863,7]
[314189659,1708055439987,-192.91,0.0003863,7]
[314189660,1708055439996,-500.0,0.0003863,7]
[314189661,1708055440005,-500.0,0.0003863,7]
[314189662,1708055440014,-500.0,0.0003863,7]
[314189663,1708055440024,-500.0,0.0003863,7]
[314189664,1708055440033,-500.0,0.0003863,7]
[314189665,1708055440042,-500.0,0.0003863,7]
[314189666,1708055440051,-500.0,0.0003863,7]
[314189667,1708055440060,-500.0,0.0003863,7]
[314189668,1708055440069,-246.36144057,0.0003863,7]
[314189669,1708055440078,-500.0,0.0003863,7]
[314189670,1708055440087,-530.25651741,0.0003863,7]
[314189671,1708055440095,-500.0,0.0003863,7]
[314189672,1708055440105,-500.0,0.0003863,7]
[314189673,1708055440114,-500.0,0.0003863,7]
[314189674,1708055440123,-500.0,0.0003863,7]
[314189675,1708055440132,-591.83,0.0003863,7]
[314189676,1708055440141,-500.0,0.0003863,7]
[314189677,1708055440150,-500.0,0.0003863,7]
[314189678,1708055440159,-500.0,0.0003863,7]
[314189679,1708055440168,-523.26,0.0003863,7]
[314189680,1708055440177,-500.0,0.0003863,7]
[314189681,1708055440186,-587.32033548,0.0003863,7]
[314189682,1708055440195,-502.8,0.0003863,7]
[314189683,1708055440204,-500.0,0.0003863,7]
[314189684,1708055440212,-500.0,0.0003863,7]
[314189685,1708055440221,-445.67882735,0.0003863,7]
[314189686,1708055440230,-500.0,0.0003863,7]
[314189687,1708055440239,-500.0,0.0003863,7]
[314189688,1708055440249,-500.0,0.0003863,7]
[314189689,1708055440258,-500.0,0.0003863,7]
[314189690,1708055440268,-500.0,0.0003863,7]
[314189691,1708055440277,-539.09,0.0003863,7]
[314189692,1708055440286,-732.29,0.0003863,7]
[314189693,1708055440295,-500.0,0.0003863,7]
[314189694,1708055440304,-500.0,0.0003863,7]
[314189695,1708055440313,-500.0,0.0003863,7]
[314189696,1708055440322,-500.0,0.0003863,7]
[314189697,1708055440331,-500.0,0.0003863,7]
[314189698,1708055440340,-164.322404,0.0003863,7]
[314189699,1708055440349,-279.8,0.0003863,7]
[314189700,1708055440358,-500.0,0.0003863,7]
[314189701,1708055440368,-500.0,0.0003863,7]
[314189702,1708055440377,-500.0,0.0003863,7]
[314189703,1708055440385,-501.97421646,0.0003863,7]
[314189704,1708055440394,-182.82828618,0.0003863,7]
[314189705,1708055440403,-500.0,0.0003863,7]
[314189706,1708055440412,-1505.67,0.0003863,7]
[314189707,1708055440421,-311.84767353,0.0003863,7]
[314189708,1708055440431,-500.0,0.0003863,7]
[314189709,1708055440440,-500.0,0.0003863,7]
[314189710,1708055440449,-500.0,0.0003863,7]
[314189711,1708055440458,-500.0,0.0003863,7]
[314189712,1708055440467,-667.52,0.0003863,7]
[314189713,1708055440476,-500.0,0.0003863,7]
[314189714,1708055440485,-500.0,0.0003863,7]
[314189715,1708055440494,-500.0,0.0003863,7]
[314189716,1708055440502,-293.97,0.0003863,7]
[314189717,1708055440512,-500.0,0.0003863,7]
[314189718,1708055440522,-500.0,0.0003863,7]
[314189719,1708055440532,-611.58568545,0.0003863,7]
[314189720,1708055440541,-500.0,0.0003863,7]
[314189721,1708055440550,-500.0,0.0003863,7]
[314189722,1708055440559,-500.0,0.0003863,7]
[314189723,1708055440569,-500.0,0.0003863,7]
[314189724,1708055440578,-500.0,0.0003863,7]
[314189725,1708055440589,-500.0,0.0003863,7]
[314189727,1708055440700,-503.46,0.0003863,7]
[314189728,1708055440722,-500.0,0.0003863,7]
[314189729,1708055440731,-500.0,0.0003863,7]
[314189730,1708055440741,-500.0,0.0003863,7]
[314189731,1708055440752,-500.0,0.0003863,7]
[314189732,1708055440763,-1147.58,0.0003863,7]
[314189733,1708055440773,-500.0,0.0003863,7]
[314189734,1708055440781,-500.0,0.0003863,7]
[314189735,1708055440790,-500.0,0.0003863,7]
[314189736,1708055440800,-500.0,0.0003863,7]
[314189737,1708055440810,-500.0,0.0003863,7]
[314189738,1708055440820,-500.0,0.0003863,7]
[314189739,1708055440830,-500.0,0.0003863,7]
[314189740,1708055440840,-500.0,0.0003863,7]
[314189741,1708055440851,-500.0,0.0003863,7]
[314189742,1708055440861,-586.29,0.0003863,7]
[314189743,1708055440870,-500.0,0.0003863,7]
[314189744,1708055440879,-500.0,0.0003863,7]
[314189745,1708055440888,-500.0,0.0003863,7]
[314189746,1708055440897,-500.0,0.0003863,7]
[314189747,1708055440906,-500.0,0.0003863,7]
[314189748,1708055440915,-1277.64,0.0003863,7]
[314189749,1708055440925,-500.0,0.0003863,7]
[314189750,1708055440934,-536.41544918,0.0003863,7]
[314189751,1708055440943,-500.0,0.0003863,7]
[314189752,1708055440952,-500.0,0.0003863,7]
[314189753,1708055440962,-500.0,0.0003863,7]
[314189754,1708055440972,-5457.67,0.0003863,7]
[314189755,1708055440982,-500.0,0.0003863,7]
[314189756,1708055440991,-169.75369119,0.0003863,7]
[314189757,1708055441000,-500.0,0.0003863,7]
[314189758,1708055441009,-188.13627253,0.0003863,7]
[314189759,1708055441018,-500.0,0.0003863,7]
[314189760,1708055441028,-500.0,0.0003863,7]
[314189761,1708055441037,-500.0,0.0003863,7]
[314189762,1708055441046,-500.0,0.0003863,7]
[314189763,1708055441054,-500.0,0.0003863,7]
[314189764,1708055441063,-500.0,0.0003863,7]
[314189765,1708055441072,-500.0,0.0003863,7]
[314189766,1708055441081,-537.13,0.0003863,7]
[314189767,1708055441090,-500.0,0.0003863,7]
[314189768,1708055441099,-500.0,0.0003863,7]
[314189769,1708055441108,-500.0,0.0003863,7]
[314189770,1708055441117,-500.0,0.0003863,7]
[314189771,1708055441127,-356.34746043,0.0003863,7]
[314189772,1708055441136,-500.0,0.0003863,7]
[314189773,1708055441146,-500.0,0.0003863,7]
[314189774,1708055441155,-500.0,0.0003863,7]
[314189775,1708055441166,-484.64516096,0.0003863,7]
[314189776,1708055441177,-608.02341481,0.0003863,7]
[314189777,1708055441188,-500.0,0.0003863,7]
[314189778,1708055441197,-543.39,0.0003863,7]
[314189779,1708055441208,-206.0,0.00038643,9]
[314189780,1708055441217,-3365.09819918,0.00038679,2]
[314189781,1708055441227,-165.62,0.00038697,2]
[314189782,1708055441235,-21851.03080988,0.000387,2]
[314189783,1708055441245,-572.0,0.00038701,7]
[314189784,1708055441258,-342.0,0.00038701,7]
[314189785,1708055441269,-400.0,0.00038701,7]
[314189786,1708055441279,-150.0,0.00038701,7]
[314189787,1708055441288,-216.54793737,0.00038803,7]
[314189788,1708055441298,-129346.1268956,0.0003882,3]
[314189789,1708055441307,-8339.23,0.0003882,2]
[314189790,1708055441317,-8339.23,0.0003882,2]
[314189791,1708055441327,-8339.23,0.0003882,2]
[314189792,1708055441340,-8339.23,0.0003882,2]
[314189793,1708055441351,-8339.23,0.0003882,2]
[314189794,1708055441362,-8339.23,0.0003882,2]
[314189795,1708055441371,-8339.23,0.0003882,2]
[314189796,1708055441380,-8339.23,0.0003882,2]
[314189797,1708055441389,-8339.23,0.0003882,2]
[314189798,1708055441398,-8339.23,0.0003882,2]
[314189799,1708055441407,-8339.23,0.0003882,2]
[314189800,1708055441416,-8339.23,0.0003882,2]
[314189801,1708055441425,-8339.23,0.0003882,2]
[314189802,1708055441434,-8339.23,0.0003882,2]
[314189803,1708055441443,-8339.23,0.0003882,2]
[314189804,1708055441452,-8339.26955437,0.0003882,2]
[314189805,1708055441461,-1020.16216057,0.00038825,9]
[314189806,1708055441471,-382.88440983,0.00038843,2]
[314189807,1708055441480,-3365.09819918,0.00038862,2]
[314189808,1708055441489,-152.42170121,0.0003888,2]
[314189809,1708055441501,-151.06206482,0.0003888,2]
[314189810,1708055441510,-177.38,0.000389,2]
[314189811,1708055441520,-203.63670306,0.00038904,7]
[314189812,1708055441529,-561.66,0.00038904,2]
[314189813,1708055441539,-500.0,0.00038904,7]
[314189814,1708055441549,-500.0,0.00038904,7]
[314189815,1708055441558,-500.0,0.00038904,7]
[314189816,1708055441568,-1849.31,0.00038904,7]
[314189817,1708055441577,-500.0,0.00038904,7]
[314189818,1708055441586,-520.78976608,0.00038904,7]
[314189819,1708055441595,-269.46595323,0.00038904,7]
[314189820,1708055441605,-500.0,0.00038904,7]
[314189821,1708055441614,-522.03748507,0.00038904,7]
[314189822,1708055441623,-533.1562138,0.00038904,7]
[314189823,1708055441632,-510.07034866,0.00038904,7]
[314189824,1708055441641,-500.0,0.00038904,7]
[314189825,1708055441651,-500.0,0.00038904,7]
[314189826,1708055441660,-500.0,0.00038904,7]
[314189827,1708055441669,-500.0,0.00038904,7]
[314189828,1708055441678,-504.36544174,0.00038904,7]
[314189829,1708055441687,-500.0,0.00038904,7]
[314189830,1708055441696,-520.59475535,0.00038904,7]
[314189831,1708055441705,-528.65666919,0.00038904,7]
[314189832,1708055441714,-500.0,0.00038904,7]
[314189833,1708055441723,-500.0,0.00038904,7]
[314189834,1708055441733,-520.39562234,0.00038904,7]
[314189835,1708055441742,-511.39305605,0.00038904,7]
[314189836,1708055441753,-528.07525804,0.00038904,7]
[314189837,1708055441762,-515.33257425,0.00038904,7]
[314189838,1708055441772,-522.67571369,0.00038904,7]
[314189839,1708055441781,-507.42283065,0.00038904,7]
[314189840,1708055441791,-529.88174326,0.00038904,7]
[314189841,1708055441800,-517.72392142,0.00038904,7]
[314189842,1708055441809,-500.0,0.00038904,7]
[314189843,1708055441818,-353.34224842,0.00038904,7]
[314189844,1708055441828,-6413.5,0.00038904,7]
[314189845,1708055441838,-500.0,0.00038904,7]
[314189846,1708055441847,-500.0,0.00038904,7]
[314189847,1708055441857,-500.0,0.00038904,7]
[314189848,1708055441866,-612.25967779,0.00038904,7]
[314189849,1708055441875,-530.66420215,0.00038904,7]
[314189850,1708055441884,-500.0,0.00038904,7]
[314189851,1708055441893,-341.53978919,0.00038904,7]
[314189852,1708055441902,-500.0,0.00038904,7]
[314189853,1708055441912,-603.91,0.00038904,7]
[314189854,1708055441922,-500.0,0.00038904,7]
[314189855,1708055441931,-980.23,0.00038904,7]
[314189856,1708055441941,-500.0,0.00038904,7]
[314189857,1708055441950,-500.0,0.00038904,7]
[314189858,1708055441959,-500.0,0.00038904,7]
[314189859,1708055441968,-155.62504203,0.00038904,7]
[314189860,1708055441978,-500.0,0.00038904,7]
[314189861,1708055441987,-500.0,0.00038904,7]
[314189862,1708055441996,-279.89,0.00038904,7]
[314189863,1708055442005,-591.83,0.00038904,7]
[314189864,1708055442015,-500.0,0.00038904,7]
[314189865,1708055442024,-500.0,0.00038904,7]
[314189866,1708055442033,-500.0,0.00038904,7]
[314189867,1708055442042,-523.26,0.00038904,7]
[314189868,1708055442051,-502.8,0.00038904,7]
[314189869,1708055442060,-500.0,0.00038904,7]
[314189870,1708055442069,-500.0,0.00038904,7]
[314189871,1708055442078,-500.0,0.00038904,7]
[314189872,1708055442087,-500.0,0.00038904,7]
[314189873,1708055442096,-500.0,0.00038904,7]
[314189874,1708055442105,-500.0,0.00038904,7]
[314189875,1708055442114,-539.09,0.00038904,7]
[314189876,1708055442122,-732.29,0.00038904,7]
[314189877,1708055442131,-500.0,0.00038904,7]
[314189878,1708055442140,-500.0,0.00038904,7]
[314189879,1708055442149,-500.0,0.00038904,7]
[314189880,1708055442157,-622.60739586,0.00038904,7]
[314189881,1708055442166,-205.39830933,0.00038904,7]
[314189882,1708055442175,-500.0,0.00038904,7]
[314189883,1708055442184,-500.0,0.00038904,7]
[314189884,1708055442193,-1505.67,0.00038904,7]
[314189885,1708055442202,-500.0,0.00038904,7]
[314189886,1708055442210,-500.0,0.00038904,7]
[314189887,1708055442220,-500.0,0.00038904,7]
[314189888,1708055442229,-500.0,0.00038904,7]
[314189889,1708055442238,-500.0,0.00038904,7]
[314189890,1708055442246,-667.52,0.00038904,7]
[314189891,1708055442255,-500.0,0.00038904,7]
[314189892,1708055442265,-500.0,0.00038904,7]
[314189893,1708055442274,-500.0,0.00038904,7]
[314189894,1708055442283,-500.0,0.00038904,7]
[314189895,1708055442292,-500.0,0.00038904,7]
[314189896,1708055442301,-500.0,0.00038904,7]
[314189897,1708055442310,-500.0,0.00038904,7]
[314189898,1708055442319,-500.0,0.00038904,7]
[314189899,1708055442327,-500.0,0.00038904,7]
[314189900,1708055442336,-500.0,0.00038904,7]
[314189901,1708055442345,-500.0,0.00038904,7]
[314189902,1708055442354,-503.46,0.00038904,7]
[314189903,1708055442363,-500.0,0.00038904,7]
[314189904,1708055442372,-500.0,0.00038904,7]
[314189905,1708055442381,-500.0,0.00038904,7]
[314189906,1708055442390,-241.09693493,0.00038904,7]
[314189907,1708055442399,-1147.58,0.00038904,7]
[314189908,1708055442408,-500.0,0.00038904,7]
[314189909,1708055442417,-500.0,0.00038904,7]
[314189910,1708055442426,-500.0,0.00038904,7]
[314189911,1708055442435,-500.0,0.00038904,7]
[314189912,1708055442444,-500.0,0.00038904,7]
[314189913,1708055442453,-500.0,0.00038904,7]
[314189914,1708055442462,-331.00135467,0.00038904,7]
[314189915,1708055442470,-500.0,0.00038904,7]
[314189916,1708055442480,-500.0,0.00038904,7]
[314189917,1708055442489,-500.0,0.00038904,7]
[314189918,1708055442498,-500.0,0.00038904,7]
[314189919,1708055442507,-630.51779054,0.00038904,7]
[314189920,1708055442516,-500.0,0.00038904,7]
[314189921,1708055442525,-1277.64,0.00038904,7]
[314189922,1708055442534,-500.0,0.00038904,7]
[314189923,1708055442543,-500.0,0.00038904,7]
[314189924,1708055442553,-500.0,0.00038904,7]
[314189925,1708055442563,-500.0,0.00038904,7]
[314189926,1708055442572,-5457.67,0.00038904,7]
[314189927,1708055442581,-581.92854167,0.00038904,7]
[314189928,1708055442591,-500.0,0.00038904,7]
[314189929,1708055442601,-584.68052669,0.00038904,7]
[314189930,1708055442610,-500.0,0.00038904,7]
[314189931,1708055442619,-521.88108209,0.00038904,7]
[314189932,1708055442629,-500.0,0.00038904,7]
[314189933,1708055442639,-500.0,0.00038904,7]
[314189934,1708055442648,-500.0,0.00038904,7]
[314189935,1708055442657,-500.0,0.00038904,7]
[314189936,1708055442667,-537.13,0.00038904,7]
[314189937,1708055442675,-500.0,0.00038904,7]
[314189938,1708055442685,-500.0,0.00038904,7]
[314189939,1708055442694,-500.0,0.00038904,7]
[314189940,1708055442704,-500.0,0.00038904,7]
[314189941,1708055442713,-500.0,0.00038904,7]
[314189942,1708055442722,-309.16666785,0.00038904,7]
[314189943,1708055442732,-500.0,0.00038904,7]
[314189944,1708055442742,-193.30826437,0.00038904,7]
[314189945,1708055442752,-543.39,0.00038904,7]
[314189946,1708055442762,-3365.09819918,0.00039046,2]
[314189947,1708055442772,-572.0,0.00039046,7]
[314189948,1708055442781,-342.0,0.00039046,7]
[314189949,1708055442790,-400.0,0.00039046,7]
[314189950,1708055442800,-150.0,0.00039046,7]
[314189951,1708055442809,-382.88440983,0.00039155,2]
[314189952,1708055442819,-28370.42220132,0.00039161,2]
[314189953,1708055442829,-500.0,0.00039178,7]
[314189954,1708055442838,-1849.31,0.00039178,7]
[314189955,1708055442847,-500.0,0.00039178,7]
[314189956,1708055442856,-500.0,0.00039178,7]
[314189957,1708055442866,-507.99335284,0.00039178,7]
[314189958,1708055442875,-568.33922563,0.00039178,7]
[314189959,1708055442884,-500.0,0.00039178,7]
[314189960,1708055442893,-514.27641677,0.00039178,7]
[314189961,1708055442902,-500.0,0.00039178,7]
[314189962,1708055442912,-504.3917733,0.00039178,7]
[314189963,1708055442922,-532.98,0.00039178,7]
[314189964,1708055442931,-6413.5,0.00039178,7]
[314189965,1708055442941,-500.0,0.00039178,7]
[314189966,1708055442950,-500.0,0.00039178,7]
[314189967,1708055442960,-603.91,0.00039178,7]
[314189968,1708055442969,-500.0,0.00039178,7]
[314189969,1708055442978,-980.23,0.00039178,7]
[314189970,1708055442988,-500.0,0.00039178,7]
[314189971,1708055442997,-500.0,0.00039178,7]
[314189972,1708055443007,-500.0,0.00039178,7]
[314189973,1708055443017,-500.0,0.00039178,7]
[314189974,1708055443026,-591.83,0.00039178,7]
[314189975,1708055443036,-500.0,0.00039178,7]
[314189976,1708055443045,-500.0,0.00039178,7]
[314189977,1708055443053,-500.0,0.00039178,7]
[314189978,1708055443063,-523.26,0.00039178,7]
[314189979,1708055443072,-502.8,0.00039178,7]
[314189980,1708055443081,-500.0,0.00039178,7]
[314189981,1708055443090,-597.90648904,0.00039178,7]
[314189982,1708055443099,-500.0,0.00039178,7]
[314189983,1708055443109,-500.0,0.00039178,7]
[314189984,1708055443118,-539.09,0.00039178,7]
[314189985,1708055443127,-732.29,0.00039178,7]
[314189986,1708055443136,-500.0,0.00039178,7]
[314189987,1708055443146,-500.0,0.00039178,7]
[314189989,1708055443156,-500.0,0.00039178,7]
[314189990,1708055443165,-1505.67,0.00039178,7]
[314189992,1708055443174,-613.2,0.00039178,7]
[314189994,1708055443184,-618.85279716,0.00039178,7]
[314189995,1708055443193,-500.0,0.00039178,7]
[314189996,1708055443202,-500.0,0.00039178,7]
[314189997,1708055443211,-160.56522104,0.00039178,7]
[314189998,1708055443221,-667.52,0.00039178,7]
[314189999,1708055443230,-500.0,0.00039178,7]
[314190001,1708055443240,-604.88209581,0.00039178,7]
[314190002,1708055443249,-500.0,0.00039178,7]
[314190004,1708055443258,-500.0,0.00039178,7]
[314190006,1708055443269,-500.0,0.00039178,7]
[314190008,1708055443280,-500.0,0.00039178,7]
[314190011,1708055443290,-500.0,0.00039178,7]
[314190015,1708055443301,-500.0,0.00039178,7]
[314190016,1708055443311,-500.0,0.00039178,7]
[314190019,1708055443320,-500.0,0.00039178,7]
[314190020,1708055443330,-500.0,0.00039178,7]
[314190022,1708055443339,-503.46,0.00039178,7]
[314190026,1708055443348,-500.0,0.00039178,7]
[314190028,1708055443358,-500.0,0.00039178,7]
[314190029,1708055443367,-500.0,0.00039178,7]
[314190032,1708055443376,-1147.58,0.00039178,7]
[314190033,1708055443385,-500.0,0.00039178,7]
[314190034,1708055443395,-500.0,0.00039178,7]
[314190035,1708055443404,-500.0,0.00039178,7]
[314190036,1708055443413,-500.0,0.00039178,7]
[314190038,1708055443422,-500.0,0.00039178,7]
[314190040,1708055443431,-500.0,0.00039178,7]
[314190042,1708055443440,-279.0878265,0.00039178,7]
[314190044,1708055443449,-500.0,0.00039178,7]
[314190046,1708055443459,-500.0,0.00039178,7]
[314190055,1708055443580,-500.0,0.00039178,7]
[314190056,1708055443588,-500.0,0.00039178,7]
[314190057,1708055443597,-1277.64,0.00039178,7]
[314190058,1708055443606,-500.0,0.00039178,7]
[314190059,1708055443614,-500.0,0.00039178,7]
[314190060,1708055443623,-500.0,0.00039178,7]
[314190061,1708055443633,-500.0,0.00039178,7]
[314190062,1708055443642,-5457.67,0.00039178,7]
[314190063,1708055443651,-500.0,0.00039178,7]
[314190064,1708055443661,-500.0,0.00039178,7]
[314190065,1708055443670,-500.0,0.00039178,7]
[314190066,1708055443679,-500.0,0.00039178,7]
[314190067,1708055443688,-500.0,0.00039178,7]
[314190068,1708055443697,-537.13,0.00039178,7]
[314190069,1708055443706,-500.0,0.00039178,7]
[314190070,1708055443715,-500.0,0.00039178,7]
[314190071,1708055443724,-500.0,0.00039178,7]
[314190072,1708055443733,-500.0,0.00039178,7]
[314190073,1708055443742,-500.0,0.00039178,7]
[314190074,1708055443754,-500.0,0.00039178,7]
[314190075,1708055443763,-543.39,0.00039178,7]
[314190076,1708055443773,-156.021624,0.00039198,26]
[314190077,1708055443782,-3365.09819918,0.00039229,2]
[314190078,1708055443791,-213.77,0.0003926,2]
[314190079,1708055443800,-171.021624,0.00039276,24]
[314190080,1708055443809,-151.021624,0.00039298,26]
[314190081,1708055443818,-2626.46765754,0.00039298,2]
[314190082,1708055443829,-1232.220869,0.000393,2]
[314190083,1708055443838,-1520.209279,0.000393,29]
[314190084,1708055443847,-342.19,0.00039307,2]
[314190085,1708055443856,-154.68332976,0.00039352,4]
[314190086,1708055443865,-151.021624,0.00039376,25]
[314190087,1708055443874,-151.021624,0.00039376,25]
[314190088,1708055443883,-151.021624,0.00039376,25]
[314190089,1708055443891,-171.021624,0.00039376,25]
[314190090,1708055443901,-171.021624,0.00039376,25]
[314190091,1708055443910,-500.0,0.00039384,7]
[314190092,1708055443919,-178.59218148,0.00039388,13]
[314190093,1708055443928,-572.0,0.00039392,7]
[314190094,1708055443937,-342.0,0.00039392,7]
[314190095,1708055443946,-400.0,0.00039392,7]
[314190096,1708055443959,-150.0,0.00039392,7]
[314190097,1708055443969,-151.021624,0.00039398,26]
[314190098,1708055443977,-173.59709461,0.00039398,13]
[314190099,1708055443987,-1920.159181,0.00039399,7]
[314190100,1708055443996,-3365.09819918,0.00039413,2]
[314190101,1708055444006,-165.62,0.00039441,2]
[314190102,1708055444014,-177.38,0.00039448,2]
[314190103,1708055444023,-500.0,0.00039451,10]
[314190104,1708055444033,-204.77343735,0.00039452,7]
[314190105,1708055444041,-1849.31,0.00039452,7]
[314190106,1708055444050,-500.0,0.00039452,7]
[314190107,1708055444060,-500.0,0.00039452,7]
[314190108,1708055444069,-500.0,0.00039452,7]
[314190109,1708055444078,-500.0,0.00039452,7]
[314190110,1708055444086,-6413.5,0.00039452,7]
[314190111,1708055444096,-500.0,0.00039452,7]
[314190112,1708055444105,-500.0,0.00039452,7]
[314190113,1708055444114,-603.91,0.00039452,7]
[314190114,1708055444123,-980.23,0.00039452,7]
[314190115,1708055444132,-500.0,0.00039452,7]
[314190116,1708055444141,-500.0,0.00039452,7]
[314190117,1708055444151,-500.0,0.00039452,7]
[314190118,1708055444160,-500.0,0.00039452,7]
[314190119,1708055444169,-591.83,0.00039452,7]
[314190120,1708055444178,-500.0,0.00039452,7]
[314190121,1708055444187,-500.0,0.00039452,7]
[314190122,1708055444196,-500.0,0.00039452,7]
[314190123,1708055444205,-523.26,0.00039452,7]
[314190124,1708055444214,-502.8,0.00039452,7]
[314190125,1708055444223,-500.0,0.00039452,7]
[314190126,1708055444232,-204.38115332,0.00039452,7]
[314190127,1708055444242,-539.09,0.00039452,7]
[314190128,1708055444251,-732.29,0.00039452,7]
[314190129,1708055444261,-230.71,0.00039452,7]
[314190130,1708055444271,-500.0,0.00039452,7]
[314190131,1708055444281,-1505.67,0.00039452,7]
[314190132,1708055444290,-500.0,0.00039452,7]
[314190133,1708055444300,-667.52,0.00039452,7]
[314190134,1708055444309,-500.0,0.00039452,7]
[314190135,1708055444319,-500.0,0.00039452,7]
[314190136,1708055444328,-500.0,0.00039452,7]
[314190137,1708055444337,-601.21442329,0.00039452,7]
[314190138,1708055444347,-500.0,0.00039452,7]
[314190139,1708055444356,-500.0,0.00039452,7]
[314190140,1708055444366,-500.0,0.00039452,7]
[314190141,1708055444376,-500.0,0.00039452,7]
[314190142,1708055444387,-500.0,0.00039452,7]
[314190143,1708055444400,-503.46,0.00039452,7]
[314190144,1708055444410,-500.0,0.00039452,7]
[314190145,1708055444422,-633.03224068,0.00039452,7]
[314190146,1708055444432,-500.0,0.00039452,7]
[314190147,1708055444443,-1147.58,0.00039452,7]
[314190148,1708055444455,-500.0,0.00039452,7]
[314190149,1708055444464,-500.0,0.00039452,7]
[314190150,1708055444473,-500.0,0.00039452,7]
[314190151,1708055444482,-280.81776557,0.00039452,7]
[314190152,1708055444493,-383.41453293,0.00039452,7]
[314190153,1708055444505,-500.0,0.00039452,7]
[314190154,1708055444514,-500.0,0.00039452,7]
[314190155,1708055444524,-580.17828646,0.00039452,7]
[314190156,1708055444534,-1277.64,0.00039452,7]
[314190157,1708055444543,-500.0,0.00039452,7]
[314190158,1708055444552,-500.0,0.00039452,7]
[314190159,1708055444561,-500.0,0.00039452,7]
[314190160,1708055444572,-500.0,0.00039452,7]
[314190161,1708055444581,-5457.67,0.00039452,7]
[314190162,1708055444591,-513.83439317,0.00039452,7]
[314190163,1708055444600,-500.0,0.00039452,7]
[314190164,1708055444610,-500.0,0.00039452,7]
[314190165,1708055444619,-500.0,0.00039452,7]
[314190166,1708055444629,-537.13,0.00039452,7]
[314190167,1708055444639,-500.0,0.00039452,7]
[314190168,1708055444648,-500.0,0.00039452,7]
[314190169,1708055444658,-500.0,0.00039452,7]
[314190170,1708055444667,-500.0,0.00039452,7]
[314190171,1708055444677,-500.0,0.00039452,7]
[314190172,1708055444689,-543.39,0.00039452,7]
[314190173,1708055444699,-259.283563,0.00039452,14]
[314190174,1708055444708,-1020.16216057,0.00039454,9]